[Event "26th OIBM 2023"]
[Site "Gmund am Tegernsee"]
[Date "2023.10.28"]
[Round "1.1"]
[White "Billio, Atto"]
[Black "Lagarde, Maxime"]
[Result "0-1"]
[ECO "A10"]
[WhiteElo "2098"]
[BlackElo "2626"]
[Annotator "TA"]
[PlyCount "76"]
[EventDate "2023.10.04"]
[EventType "swiss"]
[EventCountry "GER"]
[SourceTitle "playchess.com"]
[Source "ChessBase"]
[SourceQuality "1"]
[TimeControl "40/5400+30:1800+30"]

{[%evp 9,76,8,23,14,22,15,20,19,23,27,14,0,16,8,30,29,27,24,13,0,0,0,0,-18,0,0,0,-11,30,-12,-13,-25,-17,-19,-16,-41,-35,-37,-37,-43,-26,-41,-38,-34,-29,-29,-29,-42,-16,-17,-14,-10,-10,-10,-11,-84,-82,-83,-83,-123,-95,-88,-84,-247,-193,-535,-333,-1202,-1198]} 1. c4 {[%emt 1:31:00]} b6 {[%emt 0:00:21]} 2. Nc3 {[%emt 0:00:00]} Bb7 {[%emt 0:00:04]} 3. e4 {[%emt 0:00:00]} e5 {[%emt 0:00:05]} 4. Nf3 {[%emt 0:00:00]} Nc6 {[%emt 0:00:05]} 5. g3 {[%emt 0:00:00]} Bc5 {[%emt 0:00:11]} 6. Bg2 {[%emt 0:00:00][%cal Of3e5] A10: English Opening: Unusual Replies for Black.} d6 {[%emt 0:01:44]} 7. a3 {[%emt 0:00:00]} a5 {[%emt 0:00:05]} 8. O-O {[%emt 0:00:00] The position is equal.} Nge7 {[%emt 0:00:32]} 9. Rb1 {[%emt 0:00:00]} O-O {[%emt 0:00:26]} 10. d3 {[%emt 0:00:00]} Qd7 {[%emt 0:04:45] [#]} 11. Bd2 $146 {[%emt 0:00:00]} ({Predecessor:} 11. Nh4 Bd4 12. Kh1 Ng6 13. Nf5 Nce7 14. Nxd4 exd4 15. Nd5 Nxd5 16. cxd5 Ne7 17. b4 {½-½ Warakomski,T (2534)-Bartel,M (2619) POL-ch Lotto 79th 2022 (1.1)}) 11... f5 {[%emt 0:02:06]} 12. Bh3 {[%emt 0:00:00]} Nd4 {[%emt 0:08:41]} 13. Nxd4 {[%emt 0:00:00]} Bxd4 {[%emt 0:00:44]} 14. Ne2 {[%emt 0:00:00]} Qe8 {[%emt 0:09:04]} 15. Nxd4 {[%emt 0:00:00]} exd4 {[%emt 0:00:04]} 16. f3 {[%emt 0:00:00]} Qg6 {[%emt 0:01:40]} (16... Qh5 $5 {[%cal Rh5h3]} 17. Bg2 Ng6 $11) 17. Bg2 {[%emt 0:00:00]} fxe4 {[%emt 0:03:01]} 18. fxe4 {[%emt 0:00:00]} Nc6 {[%emt 0:01:05]} 19. Rxf8+ {[%emt 0:00:00]} (19. e5 {is more complex.} Qxd3 20. Bd5+ Kh8 21. Bf4) 19... Rxf8 {[%emt 0:00:23]} 20. Qe2 {[%emt 0:00:00][%cal Oe4e5]} Ne5 {[%emt 0:02:06]} 21. Bf4 {[%emt 0:00:00]} Bc8 {[%emt 0:02:37]} 22. Bxe5 {[%emt 0:00:00]} Bg4 {[%emt 0:01:00]} 23. Qd2 {[%emt 0:00:00]} dxe5 {[%emt 0:00:04]} 24. Rf1 {[%emt 0:00:00]} Ra8 {[%emt 0:00:30]} 25. h3 {[%emt 0:00:12]} Bd7 {[%emt 0:01:50]} 26. Kh2 {[%emt 0:00:39]} a4 {[%emt 0:00:56]} 27. h4 {[%emt 0:00:58]} Qe6 {[%emt 0:02:33]} 28. Rf5 {[%emt 0:01:49]} Qd6 {[%emt 0:01:35]} (28... g6 $5 {[%cal Rg6f5]}) 29. Rf1 {[%emt 0:02:46]} b5 {[%emt 0:00:29]} 30. cxb5 {[%emt 0:01:07]} Bxb5 {[%emt 0:00:08][%cal Bd7b5,Bb5c4,Bc4e6][%mdl 32]} 31. Bh3 {[%emt 0:00:37]} c5 {[%emt 0:01:09]} 32. Rf3 {[%emt 0:02:41]} (32. Qc2 $11 {remains equal.}) 32... c4 $17 {[%emt 0:01:43]} 33. dxc4 {[%emt 0:00:22]} Bxc4 {[%emt 0:00:11]} 34. h5 {[%emt 0:01:20]} Rb8 {[%emt 0:03:21]} 35. Rf2 {[%emt 0:00:16]} h6 {[%emt 0:04:26] Black is more active.} 36. g4 $2 {[%emt 0:01:24] [#]} (36. Bf5 $17 {might work better.}) 36... Qe7 {[%emt 0:02:25] Hoping for ...Rb3.} 37. Rf5 $2 {[%emt 0:01:10]} (37. g5 {was the crucial defense.}) 37... Be6 {[%emt 0:04:56]} 38. Rf2 {[%emt 0:00:12]} (38. Rf3) 38... Qh4 {[%emt 0:42:25] Weighted Error Value: White=0.39/Black=0.18 (very precise)} 0-1

[Event "26th OIBM 2023"]
[Site "Gmund am Tegernsee"]
[Date "2023.10.28"]
[Round "1.3"]
[White "Krahe, Frank"]
[Black "Mastrovasilis, Dimitrios"]
[Result "0-1"]
[ECO "B50"]
[WhiteElo "2094"]
[BlackElo "2573"]
[Annotator "ChessBase"]
[PlyCount "60"]
[EventDate "2023.10.04"]
[EventType "swiss"]
[EventCountry "GER"]
[SourceTitle "playchess.com"]
[Source "ChessBase"]
[SourceQuality "1"]
[TimeControl "40/5400+30:1800+30"]

1. e4 {[%emt 0:00:15]} c5 {[%emt 0:00:16]} 2. Nf3 {[%emt 0:00:22]} e6 {[%emt 0:00:28]} 3. d3 {[%emt 0:01:48]} Nc6 {[%emt 0:01:10]} 4. Nbd2 {[%emt 0:00:25]} d6 {[%emt 0:04:17]} 5. g3 {[%emt 0:00:56]} Nf6 {[%emt 0:00:14]} 6. Bg2 {[%emt 0:00:17]} Be7 {[%emt 0:00:16]} 7. O-O {[%emt 0:00:19]} O-O {[%emt 0:00:11]} 8. c3 {[%emt 0:01:53]} Bd7 {[%emt 0:12:58]} 9. Re1 {[%emt 0:06:37]} Rc8 {[%emt 0:05:50]} 10. a3 {[%emt 0:16:23]} b5 {[%emt 0:02:44]} 11. d4 {[%emt 0:06:31]} cxd4 {[%emt 0:18:09]} 12. cxd4 {[%emt 0:02:01]} Qc7 {[%emt 0:00:57]} 13. Nf1 {[%emt 0:11:25]} Na5 {[%emt 0:06:11]} 14. Bd2 {[%emt 0:01:10]} Nc4 {[%emt 0:03:07]} 15. b3 {[%emt 0:07:12]} Nxd2 {[%emt 0:02:52]} 16. N1xd2 {[%emt 0:00:18]} Qb6 {[%emt 0:02:46]} 17. Qb1 {[%emt 0:02:53]} Rc7 {[%emt 0:02:08]} 18. Qb2 {[%emt 0:00:37]} Rfc8 {[%emt 0:01:07]} 19. Rac1 {[%emt 0:00:18]} Bf8 {[%emt 0:01:04]} 20. h3 {[%emt 0:00:56]} Be8 {[%emt 0:05:08]} 21. Nh2 {[%emt 0:03:17]} Rxc1 {[%emt 0:00:53]} 22. Rxc1 {[%emt 0:00:09]} Rxc1+ {[%emt 0:00:06]} 23. Qxc1 {[%emt 0:00:06]} Qxd4 {[%emt 0:00:08]} 24. Nhf3 {[%emt 0:02:25]} Qb6 {[%emt 0:02:24]} 25. Qb2 {[%emt 0:00:18]} d5 {[%emt 0:08:00]} 26. exd5 {[%emt 0:02:32]} Nxd5 {[%emt 0:02:25]} 27. Ne4 {[%emt 0:04:48]} Qc7 {[%emt 0:01:06]} 28. h4 {[%emt 0:01:07]} h6 {[%emt 0:00:53]} 29. Ne5 {[%emt 0:01:46]} a5 {[%emt 0:03:21]} 30. Kh2 {[%emt 0:00:33]} Qe7 {[%emt 0:14:21]} 0-1

[Event "26th OIBM 2023"]
[Site "Gmund am Tegernsee"]
[Date "2023.10.28"]
[Round "1.4"]
[White "Bauer, Christian"]
[Black "Ernst, Robert"]
[Result "1-0"]
[ECO "A11"]
[WhiteElo "2552"]
[BlackElo "2093"]
[Annotator "ChessBase"]
[PlyCount "89"]
[EventDate "2023.10.04"]
[EventType "swiss"]
[EventCountry "GER"]
[SourceTitle "playchess.com"]
[Source "ChessBase"]
[SourceQuality "1"]
[TimeControl "40/5400+30:1800+30"]

1. Nf3 {[%emt 0:00:08]} d5 {[%emt 0:00:09]} 2. c4 {[%emt 0:00:14]} c6 {[%emt 0:00:09]} 3. e3 {[%emt 0:00:15]} Nf6 {[%emt 0:00:09]} 4. Nc3 {[%emt 0:00:06]} a6 {[%emt 0:00:09]} 5. h3 {[%emt 0:03:41]} b5 {[%emt 0:07:46]} 6. b3 {[%emt 0:00:15]} Bf5 {[%emt 0:05:47]} 7. Bb2 {[%emt 0:03:06]} h6 {[%emt 0:02:22]} 8. d4 {[%emt 0:09:01]} e6 {[%emt 0:00:32]} 9. Bd3 {[%emt 0:00:06]} Bxd3 {[%emt 0:01:32]} 10. Qxd3 {[%emt 0:00:02]} Be7 {[%emt 0:05:04]} 11. O-O {[%emt 0:01:38]} O-O {[%emt 0:00:39]} 12. Rfc1 {[%emt 0:03:48]} Nbd7 {[%emt 0:02:30]} 13. cxd5 {[%emt 0:04:40]} cxd5 {[%emt 0:00:27]} 14. Rc2 {[%emt 0:05:12]} Qb8 {[%emt 0:11:46]} 15. Rac1 {[%emt 0:01:58]} Qb7 {[%emt 0:03:02]} 16. a4 {[%emt 0:00:55]} b4 {[%emt 0:10:27]} 17. Ne2 {[%emt 0:00:11]} Rfc8 {[%emt 0:00:23]} 18. Nf4 {[%emt 0:04:26]} Ne4 {[%emt 0:09:53]} 19. Ne5 {[%emt 0:11:54]} Nxe5 {[%emt 0:05:04]} 20. dxe5 {[%emt 0:00:01]} Nc5 {[%emt 0:03:37]} 21. Qd1 {[%emt 0:00:02]} Rc6 {[%emt 0:07:02]} 22. Bd4 {[%emt 0:12:10]} Rac8 {[%emt 0:00:12]} 23. g3 {[%emt 0:01:37]} Nd7 {[%emt 0:04:10]} 24. Nd3 {[%emt 0:00:45]} Nb8 {[%emt 0:02:58]} 25. h4 {[%emt 0:04:03]} Rxc2 {[%emt 0:02:54]} 26. Rxc2 {[%emt 0:00:01]} Rc6 {[%emt 0:00:22]} 27. Kh2 {[%emt 0:03:23]} Rxc2 {[%emt 0:02:29]} 28. Qxc2 {[%emt 0:00:01]} Qc6 {[%emt 0:00:54]} 29. Qd1 {[%emt 0:01:10]} Nd7 {[%emt 0:00:54]} 30. Kh3 {[%emt 0:00:54]} Qc7 {[%emt 0:01:36]} 31. f4 {[%emt 0:01:41]} h5 {[%emt 0:03:28]} 32. f5 {[%emt 0:11:46]} exf5 {[%emt 0:01:20]} 33. Qxh5 {[%emt 0:00:01]} Qc2 {[%emt 0:01:46]} 34. e6 {[%emt 0:00:26]} fxe6 {[%emt 0:00:32]} 35. Qe8+ {[%emt 0:00:22]} Bf8 {[%emt 0:00:08]} 36. Qxe6+ {[%emt 0:00:39]} Kh8 {[%emt 0:00:01]} 37. Qxf5 {[%emt 0:03:58]} Qd1 {[%emt 0:03:37]} 38. Nf2 {[%emt 0:02:14]} Qf1+ {[%emt 0:00:31]} 39. Kh2 {[%emt 0:00:10]} Bd6 {[%emt 0:02:33]} 40. Qh5+ {[%emt 0:13:30]} Kg8 {[%emt 0:01:36]} 41. Qxd5+ {[%emt 0:17:39]} Kh8 {[%emt 0:28:46]} 42. Qg2 {[%emt 0:01:33]} Qb1 {[%emt 0:00:08]} 43. Qa8+ {[%emt 0:03:50]} Nb8 {[%emt 0:00:34]} 44. Qd5 {[%emt 0:02:43]} Qf1 {[%emt 0:00:42]} 45. e4 {[%emt 0:00:37]} 1-0

[Event "26th OIBM 2023"]
[Site "Gmund am Tegernsee"]
[Date "2023.10.28"]
[Round "1.5"]
[White "Beckmann, Klaus"]
[Black "Petrov, Nikita"]
[Result "0-1"]
[ECO "C68"]
[WhiteElo "2258"]
[BlackElo "2551"]
[Annotator "ChessBase"]
[PlyCount "67"]
[EventDate "2023.10.04"]
[EventType "swiss"]
[EventCountry "GER"]
[SourceTitle "playchess.com"]
[Source "ChessBase"]
[SourceQuality "1"]
[TimeControl "40/5400+30:1800+30"]

1. e4 {[%emt 0:00:03]} e5 {[%emt 0:00:11]} 2. Nf3 {[%emt 0:00:10]} Nc6 {[%emt 0:00:06]} 3. Bb5 {[%emt 0:00:10]} a6 {[%emt 0:00:19]} 4. Bxc6 {[%emt 1:32:07]} dxc6 {[%emt 0:00:07]} 5. h3 {[%emt 0:00:00]} Ne7 {[%emt 0:03:46]} 6. d4 {[%emt 0:00:00]} exd4 {[%emt 0:00:05]} 7. Qxd4 {[%emt 0:00:00]} Qxd4 {[%emt 0:00:26]} 8. Nxd4 {[%emt 0:00:00]} Ng6 {[%emt 0:00:08]} 9. Be3 {[%emt 0:00:00]} f6 {[%emt 0:00:46]} 10. Nd2 {[%emt 0:00:00]} c5 {[%emt 0:02:37]} 11. Ne2 {[%emt 0:00:00]} Be6 {[%emt 0:06:38]} 12. O-O {[%emt 0:00:00]} Ne5 {[%emt 0:08:30]} 13. b3 {[%emt 0:00:00]} O-O-O {[%emt 0:03:26]} 14. Rfd1 {[%emt 0:00:00]} Be7 {[%emt 0:01:12]} 15. Nf1 {[%emt 0:00:00]} Nc6 {[%emt 0:06:47]} 16. Nf4 {[%emt 0:00:00]} Bf7 {[%emt 0:00:07]} 17. c4 {[%emt 0:00:00]} Bd6 {[%emt 0:03:51]} 18. Nd5 {[%emt 0:00:00]} Rhe8 {[%emt 0:00:53]} 19. f3 {[%emt 0:00:00]} Nd4 {[%emt 0:02:11]} 20. Nc3 {[%emt 0:00:00]} Be5 {[%emt 0:11:01]} 21. Rac1 {[%emt 0:00:00]} b6 {[%emt 0:01:44]} 22. Kf2 {[%emt 0:00:00]} Rd7 {[%emt 0:06:38]} 23. Ne2 {[%emt 0:00:00]} g5 {[%emt 0:04:22]} 24. Bxd4 {[%emt 0:00:00]} cxd4 {[%emt 0:00:11]} 25. Rd3 {[%emt 0:00:00]} c5 {[%emt 0:00:09]} 26. g4 {[%emt 0:00:00]} h5 {[%emt 0:00:36]} 27. Nfg3 {[%emt 0:00:00]} hxg4 {[%emt 0:02:43]} 28. hxg4 {[%emt 0:00:00]} Rh8 {[%emt 0:00:35]} 29. Rh1 {[%emt 0:00:00]} Rxh1 {[%emt 0:00:15]} 30. Nxh1 {[%emt 0:00:00]} b5 {[%emt 0:00:11]} 31. Rd1 {[%emt 0:00:00]} bxc4 {[%emt 0:00:19]} 32. bxc4 {[%emt 0:00:00]} Bxc4 {[%emt 0:05:04]} 33. Rc1 {[%emt 0:00:00]} d3 {[%emt 0:00:46]} 34. Ra1 {[%emt 0:15:00]} 0-1

[Event "26th OIBM 2023"]
[Site "Gmund am Tegernsee"]
[Date "2023.10.28"]
[Round "1.6"]
[White "Van Foreest, Lucas"]
[Black "Freundorfer, Josef"]
[Result "1-0"]
[ECO "A35"]
[WhiteElo "2540"]
[BlackElo "2092"]
[Annotator "ChessBase"]
[PlyCount "51"]
[EventDate "2023.10.04"]
[EventType "swiss"]
[EventCountry "GER"]
[SourceTitle "playchess.com"]
[Source "ChessBase"]
[SourceQuality "1"]
[TimeControl "40/5400+30:1800+30"]

1. c4 {[%emt 0:00:12]} c5 {[%emt 0:00:19]} 2. Nf3 {[%emt 0:00:20]} Nc6 {[%emt 0:00:18]} 3. Nc3 {[%emt 0:00:28]} g6 {[%emt 0:00:33]} 4. e3 {[%emt 0:00:10]} Bg7 {[%emt 0:00:41]} 5. d4 {[%emt 0:02:06]} cxd4 {[%emt 0:00:16]} 6. exd4 {[%emt 0:00:20]} d6 {[%emt 0:01:13]} 7. Be2 {[%emt 0:01:26]} Nf6 {[%emt 0:01:30]} 8. d5 {[%emt 0:06:18]} Ne5 {[%emt 0:01:40]} 9. Nxe5 {[%emt 0:00:35]} dxe5 {[%emt 0:00:13]} 10. O-O {[%emt 0:00:24]} O-O {[%emt 0:03:13]} 11. Be3 {[%emt 0:00:47]} Ne8 {[%emt 0:03:54]} 12. a4 {[%emt 0:01:37]} f5 {[%emt 0:03:14]} 13. f3 {[%emt 0:00:06]} f4 {[%emt 0:04:22]} 14. Bf2 {[%emt 0:02:31]} Nd6 {[%emt 0:03:33]} 15. c5 {[%emt 0:04:33]} Nf5 {[%emt 0:00:19]} 16. a5 {[%emt 0:01:39]} Kh8 {[%emt 0:13:06]} 17. Qd2 {[%emt 0:04:48]} Nd4 {[%emt 0:04:17]} 18. Bc4 {[%emt 0:00:25]} e6 {[%emt 0:04:13]} 19. d6 {[%emt 0:00:20]} Bd7 {[%emt 0:01:03]} 20. b4 {[%emt 0:03:20]} a6 {[%emt 0:04:16]} 21. Na4 {[%emt 0:00:07]} Nc6 {[%emt 0:07:55]} 22. Nb6 {[%emt 0:00:25]} e4 {[%emt 0:00:21]} 23. fxe4 {[%emt 0:00:41]} Ne5 {[%emt 0:00:11]} 24. Bd4 {[%emt 0:00:31]} Bc6 {[%emt 0:05:04]} 25. Nxa8 {[%emt 0:00:33]} Qxa8 {[%emt 0:00:23]} 26. Qc3 {[%emt 0:00:11]} 1-0

[Event "26th OIBM 2023"]
[Site "Gmund am Tegernsee"]
[Date "2023.10.28"]
[Round "1.7"]
[White "Martin Fernandez, Rodrigo"]
[Black "Stocek, Jiri"]
[Result "0-1"]
[ECO "E11"]
[WhiteElo "2092"]
[BlackElo "2535"]
[Annotator "ChessBase"]
[PlyCount "128"]
[EventDate "2023.10.04"]
[EventType "swiss"]
[EventCountry "GER"]
[SourceTitle "playchess.com"]
[Source "ChessBase"]
[SourceQuality "1"]
[TimeControl "40/5400+30:1800+30"]

1. d4 {[%emt 0:01:12]} Nf6 {[%emt 0:03:12]} 2. c4 {[%emt 0:03:44]} e6 {[%emt 0:01:43]} 3. Nf3 {[%emt 0:00:25]} Bb4+ {[%emt 0:00:06]} 4. Nbd2 {[%emt 0:00:24]} h6 {[%emt 0:00:22]} 5. g3 {[%emt 0:00:25]} b6 {[%emt 0:00:26]} 6. Bg2 {[%emt 0:00:23]} Bb7 {[%emt 0:00:14]} 7. O-O {[%emt 0:00:21]} O-O {[%emt 0:00:15]} 8. a3 {[%emt 0:02:19]} Bxd2 {[%emt 0:01:23]} 9. Bxd2 {[%emt 0:00:56]} Be4 {[%emt 0:00:28]} 10. Ne5 {[%emt 0:08:39]} d6 {[%emt 0:07:25]} 11. Nd3 {[%emt 0:03:05]} Bxg2 {[%emt 0:00:20]} 12. Kxg2 {[%emt 0:00:12]} Nbd7 {[%emt 0:02:19]} 13. Bc3 {[%emt 0:04:20]} Re8 {[%emt 0:03:27]} 14. Rc1 {[%emt 0:03:33]} a5 {[%emt 0:03:58]} 15. b3 {[%emt 0:01:13]} Qc8 {[%emt 0:13:49]} 16. f3 {[%emt 0:10:51]} d5 {[%emt 0:00:47]} 17. a4 {[%emt 0:04:23]} Qb7 {[%emt 0:03:06]} 18. Re1 {[%emt 0:05:48]} Rac8 {[%emt 0:14:29]} 19. c5 {[%emt 0:16:25]} Qa8 {[%emt 0:03:18]} 20. Bb2 {[%emt 0:03:23]} bxc5 {[%emt 0:01:49]} 21. Nxc5 {[%emt 0:00:29]} Nxc5 {[%emt 0:00:47]} 22. Rxc5 {[%emt 0:01:18]} Nd7 {[%emt 0:00:06]} 23. Rc3 {[%emt 0:01:29]} e5 {[%emt 0:08:34]} 24. dxe5 {[%emt 0:03:27]} c5 {[%emt 0:00:09]} 25. f4 {[%emt 0:06:35]} d4+ {[%emt 0:00:07]} 26. Rf3 {[%emt 0:00:12]} Red8 {[%emt 0:00:25]} 27. Kg1 {[%emt 0:02:27]} Nb6 {[%emt 0:00:15]} 28. Qd3 {[%emt 0:07:44]} Nd5 {[%emt 0:01:43]} 29. Qe4 {[%emt 0:02:19]} Re8 {[%emt 0:03:55]} 30. Rc1 {[%emt 0:01:41]} Qb7 {[%emt 0:01:30]} 31. Ba3 {[%emt 0:01:21]} Qd7 {[%emt 0:00:47]} 32. Rxc5 {[%emt 0:03:05]} Nc3 {[%emt 0:01:02]} 33. Qd3 {[%emt 0:00:31]} Rxc5 {[%emt 0:01:30]} 34. Bxc5 {[%emt 0:00:05]} Qd5 {[%emt 0:00:17]} 35. Qc4 {[%emt 0:02:41]} Qc6 {[%emt 0:03:17]} 36. Kf2 {[%emt 0:00:30]} Ne4+ {[%emt 0:00:36]} 37. Kg2 {[%emt 0:00:31]} Qxc5 {[%emt 0:00:33]} 38. Rd3 {[%emt 0:00:28]} Rd8 {[%emt 0:00:49]} 39. e3 {[%emt 0:00:28]} Qxc4 {[%emt 0:05:25]} 40. bxc4 {[%emt 0:00:07]} Nc5 {[%emt 0:00:12]} 41. Rxd4 {[%emt 0:30:17]} Rd7 {[%emt 0:32:44]} 42. Kf3 {[%emt 0:00:00]} Kf8 {[%emt 0:00:00]} 43. Ke2 {[%emt 0:00:00]} Ke8 {[%emt 0:00:00]} 44. Rd5 {[%emt 0:00:00]} Rxd5 {[%emt 0:00:00]} 45. cxd5 {[%emt 0:00:00]} Nxa4 {[%emt 0:00:00]} 46. Kd3 {[%emt 0:00:00]} Nb2+ {[%emt 0:00:00]} 47. Kc2 {[%emt 0:00:00]} Nc4 {[%emt 0:00:00]} 48. Kd3 {[%emt 0:00:00]} Nb6 {[%emt 0:00:00]} 49. e4 {[%emt 0:00:00]} a4 {[%emt 0:00:00]} 50. Kc3 {[%emt 0:00:00]} a3 {[%emt 0:00:00]} 51. Kb3 {[%emt 0:00:00]} Nc4 {[%emt 0:00:00]} 52. Ka2 {[%emt 0:00:00]} h5 {[%emt 0:00:00]} 53. Kb3 {[%emt 0:00:00]} g5 {[%emt 0:00:00]} 54. fxg5 {[%emt 0:00:00]} Nxe5 {[%emt 0:00:00]} 55. Kxa3 {[%emt 0:00:00]} Nf3 {[%emt 0:00:00]} 56. h4 {[%emt 0:00:00]} Nd2 {[%emt 0:00:00]} 57. e5 {[%emt 0:00:00]} Ne4 {[%emt 0:00:00]} 58. Kb4 {[%emt 0:00:00]} Nxg3 {[%emt 0:00:00]} 59. Kc5 {[%emt 0:00:00]} Nf5 {[%emt 0:00:00]} 60. Kc6 {[%emt 0:00:00]} Nxh4 {[%emt 0:00:00]} 61. Kc7 {[%emt 0:00:00]} Ng6 {[%emt 0:00:00]} 62. e6 {[%emt 0:00:00]} fxe6 {[%emt 0:00:00]} 63. d6 {[%emt 0:00:00]} Ne5 {[%emt 0:00:00]} 64. g6 {[%emt 0:00:00]} h4 {[%emt 0:00:00]} 0-1

[Event "26th OIBM 2023"]
[Site "Gmund am Tegernsee"]
[Date "2023.10.28"]
[Round "1.8"]
[White "Kulaots, Kaido"]
[Black "Hofmann, Lorenz"]
[Result "1-0"]
[ECO "B11"]
[WhiteElo "2508"]
[BlackElo "2091"]
[Annotator "ChessBase"]
[PlyCount "99"]
[EventDate "2023.10.04"]
[EventType "swiss"]
[EventCountry "GER"]
[SourceTitle "playchess.com"]
[Source "ChessBase"]
[SourceQuality "1"]
[TimeControl "40/5400+30:1800+30"]

1. e4 {[%emt 0:00:20]} c6 {[%emt 0:00:07]} 2. Nf3 {[%emt 0:00:53]} d5 {[%emt 0:00:06]} 3. Nc3 {[%emt 0:00:05]} Bg4 {[%emt 0:00:07]} 4. h3 {[%emt 0:00:28]} Bxf3 {[%emt 0:03:09]} 5. Qxf3 {[%emt 0:00:19]} e6 {[%emt 0:00:10]} 6. d4 {[%emt 0:02:19]} dxe4 {[%emt 0:01:35]} 7. Qxe4 {[%emt 0:00:23]} Nf6 {[%emt 0:00:14]} 8. Qd3 {[%emt 0:00:21]} Bb4 {[%emt 0:03:34]} 9. Be2 {[%emt 0:02:36]} O-O {[%emt 0:01:07]} 10. O-O {[%emt 0:00:23]} Nbd7 {[%emt 0:05:25]} 11. Bf4 {[%emt 0:06:50]} Re8 {[%emt 0:06:17]} 12. a3 {[%emt 0:05:23]} Bxc3 {[%emt 0:10:16]} 13. bxc3 {[%emt 0:01:33]} e5 {[%emt 0:02:59]} 14. Bd2 {[%emt 0:08:37]} c5 {[%emt 0:14:56]} 15. Rfe1 {[%emt 0:03:06]} Rc8 {[%emt 0:02:51]} 16. dxe5 {[%emt 0:14:41]} Nxe5 {[%emt 0:00:56]} 17. Qxd8 {[%emt 0:00:08]} Rcxd8 {[%emt 0:04:23]} 18. Bb5 {[%emt 0:02:07]} Ned7 {[%emt 0:01:58]} 19. Rxe8+ {[%emt 0:07:29]} Nxe8 {[%emt 0:03:55]} 20. Bf4 {[%emt 0:01:10]} Ndf6 {[%emt 0:06:46]} 21. a4 {[%emt 0:02:50]} Kf8 {[%emt 0:02:27]} 22. a5 {[%emt 0:05:34]} Nd6 {[%emt 0:05:25]} 23. Rd1 {[%emt 0:08:06]} Ke7 {[%emt 0:00:18]} 24. Bf1 {[%emt 0:06:36]} Nde4 {[%emt 0:02:45]} 25. Rb1 {[%emt 0:01:26]} b6 {[%emt 0:11:39]} 26. axb6 {[%emt 0:01:16]} axb6 {[%emt 0:00:04]} 27. c4 {[%emt 0:00:26]} Nd2 {[%emt 0:01:04]} 28. Bxd2 {[%emt 0:07:26]} Rxd2 {[%emt 0:00:58]} 29. Bd3 {[%emt 0:00:05]} Nd7 {[%emt 0:01:15]} 30. Kf1 {[%emt 0:00:12]} Ne5 {[%emt 0:00:16]} 31. Ke1 {[%emt 0:00:20]} Rxd3 {[%emt 0:00:19]} 32. cxd3 {[%emt 0:00:05]} Nxd3+ {[%emt 0:00:03]} 33. Kd2 {[%emt 0:00:24]} Nb4 {[%emt 0:01:35]} 34. Ra1 {[%emt 0:00:48]} Nc6 {[%emt 0:01:37]} 35. Kc3 {[%emt 0:02:13]} Kd6 {[%emt 0:00:21]} 36. Ra8 {[%emt 0:00:32]} Nd4 {[%emt 0:00:22]} 37. Ra7 {[%emt 0:01:59]} b5 {[%emt 0:00:32]} 38. Rxf7 {[%emt 0:00:24]} b4+ {[%emt 0:00:07]} 39. Kd3 {[%emt 0:01:21]} Ne6 {[%emt 0:00:20]} 40. f4 {[%emt 0:00:43]} h6 {[%emt 0:02:19]} 41. g3 {[%emt 0:32:39]} g5 {[%emt 0:31:58]} 42. fxg5 {[%emt 0:01:53]} hxg5 {[%emt 0:00:18]} 43. h4 {[%emt 0:00:10]} gxh4 {[%emt 0:01:43]} 44. gxh4 {[%emt 0:00:05]} Ke5 {[%emt 0:00:04]} 45. h5 {[%emt 0:00:21]} Ng5 {[%emt 0:01:06]} 46. Rc7 {[%emt 0:00:22]} Kd6 {[%emt 0:00:26]} 47. Rg7 {[%emt 0:00:17]} Ne6 {[%emt 0:00:07]} 48. h6 {[%emt 0:00:10]} Nf8 {[%emt 0:01:03]} 49. Rf7 {[%emt 0:00:28]} Ng6 {[%emt 0:00:23]} 50. Rf6+ {[%emt 0:07:08]} 1-0

[Event "26th OIBM 2023"]
[Site "Gmund am Tegernsee"]
[Date "2023.10.28"]
[Round "1.9"]
[White "Riewe, Gerhard"]
[Black "Vetoshko, Volodymyr"]
[Result "0-1"]
[ECO "B23"]
[WhiteElo "2089"]
[BlackElo "2499"]
[Annotator "ChessBase"]
[PlyCount "44"]
[EventDate "2023.10.04"]
[EventType "swiss"]
[EventCountry "GER"]
[SourceTitle "playchess.com"]
[Source "ChessBase"]
[SourceQuality "1"]
[TimeControl "40/5400+30:1800+30"]

1. e4 {[%emt 0:00:03]} c5 {[%emt 0:00:43]} 2. Nc3 {[%emt 0:03:40]} a6 {[%emt 0:01:47]} 3. b3 {[%emt 0:02:19]} b5 {[%emt 0:04:41]} 4. Bb2 {[%emt 0:02:29]} Bb7 {[%emt 0:00:11]} 5. d3 {[%emt 0:03:21]} e6 {[%emt 0:05:18]} 6. f4 {[%emt 0:03:30]} Be7 {[%emt 0:06:36]} 7. Nf3 {[%emt 0:06:30]} d5 {[%emt 0:03:27]} 8. Qe2 {[%emt 0:06:31]} d4 {[%emt 0:14:14]} 9. Nd1 {[%emt 0:02:28]} Nf6 {[%emt 0:00:25]} 10. Nf2 {[%emt 0:01:40]} Nc6 {[%emt 0:03:05]} 11. g3 {[%emt 0:01:41]} Qa5+ {[%emt 0:23:06]} 12. Qd2 {[%emt 0:04:22]} Qb6 {[%emt 0:01:36]} 13. a3 {[%emt 0:05:08]} O-O {[%emt 0:05:59]} 14. Be2 {[%emt 0:03:07]} a5 {[%emt 0:04:09]} 15. a4 {[%emt 0:04:40]} c4 {[%emt 0:02:35]} 16. dxc4 {[%emt 0:00:10]} Bb4 {[%emt 0:01:10]} 17. c3 {[%emt 0:00:09]} dxc3 {[%emt 0:00:29]} 18. Bxc3 {[%emt 0:00:14]} Rfd8 {[%emt 0:05:34]} 19. Qc1 {[%emt 0:01:16]} Bxc3+ {[%emt 0:00:48]} 20. Qxc3 {[%emt 0:00:15]} Qxf2+ {[%emt 0:00:14]} 21. Kxf2 {[%emt 0:00:56]} Nxe4+ {[%emt 0:00:05]} 22. Ke3 {[%emt 0:00:53]} Nxc3 {[%emt 0:15:18]} 0-1